[Event "Titled Tuesday Blitz December 20 Early 2022"]
[White "Suduvasachmatai"]
[Black "Ademi, Sead"]
[BlackFideId "906514"]
[WhiteElo "2110"]
[BlackElo "2168"]
[Result "1-0"]
[Round "03"]
[TimeControl "180+2"]
[Date "2022.12.20"]
[WhiteClock "0:02:22"]
[BlackClock "0:01:30"]

1. e4 {[%clk 0:03:00]}  c5 {[%clk 0:02:57]} 2. c3 {[%clk 0:03:00]}  d5 {[%clk 0:02:56]} 3. exd5 {[%clk 0:03:00]}  Qxd5 {[%clk 0:02:56]} 4. d4 {[%clk 0:03:00]}  Nf6 {[%clk 0:02:57]} 5. Nf3 {[%clk 0:03:00]}  Bg4 {[%clk 0:02:56]} 6. Be2 {[%clk 0:03:00]}  e6 {[%clk 0:02:56]} 7. O-O {[%clk 0:03:00]}  Nc6 {[%clk 0:02:56]} 8. Be3 {[%clk 0:03:00]}  cxd4 {[%clk 0:02:50]} 9. cxd4 {[%clk 0:03:00]}  Be7 {[%clk 0:02:49]} 10. Nc3 {[%clk 0:03:00]}  Qd8 {[%clk 0:02:48]} 11. Ne5 {[%clk 0:02:50]}  Bxe2 {[%clk 0:02:37]} 12. Qxe2 {[%clk 0:02:46]}  Nd5 {[%clk 0:02:25]} 13. Qb5 {[%clk 0:02:31]}  Nxc3 {[%clk 0:02:24]} 14. bxc3 {[%clk 0:02:24]}  Qc7 {[%clk 0:01:44]} 15. Rab1 {[%clk 0:02:24]}  Rb8 {[%clk 0:01:43]} 16. Nxc6 {[%clk 0:02:23]}  bxc6 {[%clk 0:01:32]} 17. Qxb8+ {[%clk 0:02:22]}  Qxb8 {[%clk 0:01:30]} 18. Rxb8+ {[%clk 0:02:22]} 1-0


[Site "https://www.chess.com"]

[Event "Titled Tuesday Blitz December 20 Early 2022"]
[White "TERMINATOR_PC"]
[Black "Aleksandar-Topalov"]
[WhiteElo "2620"]
[BlackElo "2401"]
[Result "1-0"]
[Round "03"]
[TimeControl "180+2"]
[Date "2022.12.20"]
[WhiteClock "0:00:04"]
[BlackClock "0:00:04"]

1. e4 {[%clk 0:03:00]}  e6 {[%clk 0:02:59]} 2. d4 {[%clk 0:02:40]}  d5 {[%clk 0:02:59]} 3. Nc3 {[%clk 0:02:25]}  Bb4 {[%clk 0:02:58]} 4. Ne2 {[%clk 0:02:25]}  Nf6 {[%clk 0:02:54]} 5. Bg5 {[%clk 0:02:23]}  h6 {[%clk 0:02:51]} 6. Bxf6 {[%clk 0:02:21]}  Qxf6 {[%clk 0:02:51]} 7. a3 {[%clk 0:02:21]}  Bxc3+ {[%clk 0:02:46]} 8. Nxc3 {[%clk 0:02:22]}  O-O {[%clk 0:02:45]} 9. Be2 {[%clk 0:02:18]}  Nc6 {[%clk 0:02:40]} 10. e5 {[%clk 0:02:10]}  Qe7 {[%clk 0:02:40]} 11. O-O {[%clk 0:02:08]}  f6 {[%clk 0:02:40]} 12. f4 {[%clk 0:02:08]}  fxe5 {[%clk 0:02:40]} 13. fxe5 {[%clk 0:02:07]}  Bd7 {[%clk 0:02:40]} 14. Qd2 {[%clk 0:01:59]}  a6 {[%clk 0:02:35]} 15. Rxf8+ {[%clk 0:01:49]}  Rxf8 {[%clk 0:02:34]} 16. Rf1 {[%clk 0:01:50]}  Rxf1+ {[%clk 0:02:33]} 17. Bxf1 {[%clk 0:01:51]}  Qh4 {[%clk 0:02:33]} 18. Ne2 {[%clk 0:01:50]}  Be8 {[%clk 0:02:29]} 19. c3 {[%clk 0:01:47]}  Bg6 {[%clk 0:02:25]} 20. g3 {[%clk 0:01:46]}  Qe4 {[%clk 0:01:48]} 21. Nf4 {[%clk 0:01:10]}  Qb1 {[%clk 0:01:37]} 22. Kf2 {[%clk 0:01:00]}  Bf5 {[%clk 0:01:33]} 23. h3 {[%clk 0:00:45]}  g5 {[%clk 0:01:23]} 24. Nh5 {[%clk 0:00:42]}  Ne7 {[%clk 0:01:09]} 25. h4 {[%clk 0:00:40]}  Qc2 {[%clk 0:00:58]} 26. Qxc2 {[%clk 0:00:38]}  Bxc2 {[%clk 0:00:58]} 27. Nf6+ {[%clk 0:00:36]}  Kf7 {[%clk 0:00:58]} 28. Be2 {[%clk 0:00:33]}  gxh4 {[%clk 0:00:47]} 29. gxh4 {[%clk 0:00:29]}  Bg6 {[%clk 0:00:47]} 30. h5 {[%clk 0:00:26]}  Bf5 {[%clk 0:00:46]} 31. Ke3 {[%clk 0:00:25]}  Ng8 {[%clk 0:00:43]} 32. Nd7 {[%clk 0:00:23]}  a5 {[%clk 0:00:37]} 33. Nc5 {[%clk 0:00:20]}  b6 {[%clk 0:00:37]} 34. Na6 {[%clk 0:00:19]}  c6 {[%clk 0:00:35]} 35. Nb8 {[%clk 0:00:18]}  Ne7 {[%clk 0:00:35]} 36. Nd7 {[%clk 0:00:18]}  b5 {[%clk 0:00:31]} 37. Nc5 {[%clk 0:00:15]}  a4 {[%clk 0:00:30]} 38. Kf4 {[%clk 0:00:14]}  Nc8 {[%clk 0:00:20]} 39. Nb7 {[%clk 0:00:11]}  Ke7 {[%clk 0:00:18]} 40. Bg4 {[%clk 0:00:07]}  Bxg4 {[%clk 0:00:17]} 41. Kxg4 {[%clk 0:00:08]}  Nb6 {[%clk 0:00:17]} 42. Nc5 {[%clk 0:00:03]}  Nc4 {[%clk 0:00:17]} 43. Nd3 {[%clk 0:00:04]}  Ne3+ {[%clk 0:00:16]} 44. Kf3 {[%clk 0:00:04]}  Nf5 {[%clk 0:00:16]} 45. Nf2 {[%clk 0:00:03]}  Ng7 {[%clk 0:00:15]} 46. Ng4 {[%clk 0:00:03]}  Nxh5 {[%clk 0:00:15]} 47. Nxh6 {[%clk 0:00:03]}  Ng7 {[%clk 0:00:15]} 48. Kg4 {[%clk 0:00:03]}  Ne8 {[%clk 0:00:14]} 49. Kg5 {[%clk 0:00:04]}  Nc7 {[%clk 0:00:15]} 50. Kg6 {[%clk 0:00:02]}  Na6 {[%clk 0:00:15]} 51. Ng8+ {[%clk 0:00:02]}  Kf8 {[%clk 0:00:13]} 52. Nf6 {[%clk 0:00:02]}  Ke7 {[%clk 0:00:13]} 53. Ng8+ {[%clk 0:00:02]}  Kf8 {[%clk 0:00:13]} 54. Nh6 {[%clk 0:00:03]}  Ke7 {[%clk 0:00:13]} 55. Kg7 {[%clk 0:00:04]}  c5 {[%clk 0:00:12]} 56. Ng8+ {[%clk 0:00:04]}  Kd7 {[%clk 0:00:11]} 57. Kf7 {[%clk 0:00:05]}  b4 {[%clk 0:00:12]} 58. Nf6+ {[%clk 0:00:04]}  Kc6 {[%clk 0:00:11]} 59. Kxe6 {[%clk 0:00:05]}  bxc3 {[%clk 0:00:11]} 60. bxc3 {[%clk 0:00:05]}  cxd4 {[%clk 0:00:10]} 61. cxd4 {[%clk 0:00:06]}  Nb4 {[%clk 0:00:10]} 62. axb4 {[%clk 0:00:02]}  a3 {[%clk 0:00:10]} 63. b5+ {[%clk 0:00:02]}  Kxb5 {[%clk 0:00:09]} 64. Nxd5 {[%clk 0:00:02]}  Kc4 {[%clk 0:00:08]} 65. Kd6 {[%clk 0:00:03]}  a2 {[%clk 0:00:09]} 66. Ne3+ {[%clk 0:00:02]}  Kd3 {[%clk 0:00:09]} 67. e6 {[%clk 0:00:03]}  a1=Q {[%clk 0:00:08]} 68. e7 {[%clk 0:00:03]}  Qa3+ {[%clk 0:00:08]} 69. Kd7 {[%clk 0:00:03]}  Qa7+ {[%clk 0:00:08]} 70. Ke6 {[%clk 0:00:04]}  Qb6+ {[%clk 0:00:08]} 71. Kf7 {[%clk 0:00:04]}  Qb3+ {[%clk 0:00:05]} 72. d5 {[%clk 0:00:04]}  Qb7 {[%clk 0:00:03]} 73. d6 {[%clk 0:00:04]}  Qd7 {[%clk 0:00:03]} 74. Nd5 {[%clk 0:00:03]}  Qf5+ {[%clk 0:00:04]} 75. Nf6 {[%clk 0:00:04]} 1-0


[Site "https://www.chess.com"]

[Event "Titled Tuesday Blitz December 20 Early 2022"]
[White "Tobias_Koelle"]
[Black "FairChess_on_YouTube"]
[WhiteElo "2779"]
[BlackElo "3072"]
[Result "1-0"]
[Round "03"]
[TimeControl "180+2"]
[Date "2022.12.20"]
[WhiteClock "0:00:18"]
[BlackClock "0:00:04"]

1. d4 {[%clk 0:03:00]}  Nf6 {[%clk 0:02:57]} 2. c4 {[%clk 0:02:59]}  e6 {[%clk 0:02:56]} 3. Nf3 {[%clk 0:02:59]}  a6 {[%clk 0:02:50]} 4. e3 {[%clk 0:02:59]}  d5 {[%clk 0:02:49]} 5. b3 {[%clk 0:02:58]}  c5 {[%clk 0:02:38]} 6. Bd3 {[%clk 0:02:55]}  cxd4 {[%clk 0:02:36]} 7. exd4 {[%clk 0:02:56]}  b6 {[%clk 0:02:30]} 8. O-O {[%clk 0:02:54]}  Bb7 {[%clk 0:02:31]} 9. Bb2 {[%clk 0:02:47]}  Nbd7 {[%clk 0:02:28]} 10. Nbd2 {[%clk 0:02:46]}  Be7 {[%clk 0:02:17]} 11. Qe2 {[%clk 0:02:46]}  O-O {[%clk 0:02:15]} 12. Ne5 {[%clk 0:02:46]}  dxc4 {[%clk 0:02:02]} 13. bxc4 {[%clk 0:02:47]}  b5 {[%clk 0:01:54]} 14. cxb5 {[%clk 0:02:44]}  axb5 {[%clk 0:01:54]} 15. Bxb5 {[%clk 0:02:43]}  Nxe5 {[%clk 0:01:54]} 16. dxe5 {[%clk 0:02:44]}  Nd5 {[%clk 0:01:54]} 17. Nf3 {[%clk 0:02:24]}  Nf4 {[%clk 0:01:48]} 18. Qe3 {[%clk 0:02:21]}  Bg5 {[%clk 0:01:45]} 19. Nxg5 {[%clk 0:02:07]}  Qxg5 {[%clk 0:01:35]} 20. Qg3 {[%clk 0:02:07]}  Qf5 {[%clk 0:01:23]} 21. Bc1 {[%clk 0:01:44]}  Ng6 {[%clk 0:00:35]} 22. Re1 {[%clk 0:01:40]}  Ba6 {[%clk 0:00:29]} 23. Bc6 {[%clk 0:01:21]}  Rac8 {[%clk 0:00:29]} 24. Be4 {[%clk 0:01:18]}  Qxe5 {[%clk 0:00:26]} 25. Qxe5 {[%clk 0:01:18]}  Nxe5 {[%clk 0:00:27]} 26. Bxh7+ {[%clk 0:01:18]}  Kxh7 {[%clk 0:00:26]} 27. Rxe5 {[%clk 0:01:19]}  Rfd8 {[%clk 0:00:24]} 28. Be3 {[%clk 0:01:17]}  Bc4 {[%clk 0:00:22]} 29. a4 {[%clk 0:01:12]}  Bd5 {[%clk 0:00:22]} 30. Rh5+ {[%clk 0:01:05]}  Kg6 {[%clk 0:00:22]} 31. Rg5+ {[%clk 0:01:05]}  Kh7 {[%clk 0:00:22]} 32. Rg4 {[%clk 0:01:04]}  f5 {[%clk 0:00:18]} 33. Rb4 {[%clk 0:00:52]}  e5 {[%clk 0:00:17]} 34. Bg5 {[%clk 0:00:49]}  Rd7 {[%clk 0:00:17]} 35. h3 {[%clk 0:00:50]}  Kg6 {[%clk 0:00:14]} 36. Bh4 {[%clk 0:00:50]}  f4 {[%clk 0:00:15]} 37. Re1 {[%clk 0:00:48]}  Kf5 {[%clk 0:00:14]} 38. g4+ {[%clk 0:00:44]}  fxg3 {[%clk 0:00:12]} 39. Bxg3 {[%clk 0:00:45]}  Re8 {[%clk 0:00:09]} 40. a5 {[%clk 0:00:40]}  Bf3 {[%clk 0:00:08]} 41. a6 {[%clk 0:00:38]}  e4 {[%clk 0:00:08]} 42. Rb5+ {[%clk 0:00:37]}  Kg6 {[%clk 0:00:07]} 43. Rb7 {[%clk 0:00:35]}  Rd2 {[%clk 0:00:04]} 44. a7 {[%clk 0:00:31]}  Ra2 {[%clk 0:00:04]} 45. Rb8 {[%clk 0:00:28]}  Kf7 {[%clk 0:00:01]} 46. Rxe8 {[%clk 0:00:25]}  Kxe8 {[%clk 0:00:01]} 47. Bb8 {[%clk 0:00:25]}  Kd7 {[%clk 0:00:02]} 48. Rc1 {[%clk 0:00:22]}  e3 {[%clk 0:00:02]} 49. fxe3 {[%clk 0:00:21]}  Ke6 {[%clk 0:00:02]} 50. Rc4 {[%clk 0:00:18]}  Kf5 {[%clk 0:00:02]} 51. Rf4+ {[%clk 0:00:18]}  Ke6 {[%clk 0:00:02]} 52. Rxf3 {[%clk 0:00:19]}  Kd5 {[%clk 0:00:02]} 53. Rf2 {[%clk 0:00:18]}  Ra1+ {[%clk 0:00:02]} 54. Kg2 {[%clk 0:00:19]}  Ke4 {[%clk 0:00:03]} 55. Rf8 {[%clk 0:00:19]}  Kxe3 {[%clk 0:00:04]} 56. Bf4+ {[%clk 0:00:18]}  Ke4 {[%clk 0:00:04]} 57. a8=Q+ {[%clk 0:00:18]} 1-0


[Site "https://www.chess.com"]

[Event "Titled Tuesday Blitz December 20 Early 2022"]
[White "WhiteKnight2612"]
[Black "wonderfultime"]
[WhiteElo "2753"]
[BlackElo "3066"]
[Result "0-1"]
[Round "03"]
[TimeControl "180+2"]
[Date "2022.12.20"]
[WhiteClock "0:01:45"]
[BlackClock "0:02:17"]

1. d4 {[%clk 0:03:00]}  d5 {[%clk 0:02:57]} 2. c4 {[%clk 0:03:01]}  c6 {[%clk 0:02:58]} 3. Nc3 {[%clk 0:03:01]}  Nf6 {[%clk 0:02:58]} 4. Nf3 {[%clk 0:03:01]}  a6 {[%clk 0:02:58]} 5. a4 {[%clk 0:02:59]}  e6 {[%clk 0:02:57]} 6. Bf4 {[%clk 0:02:58]}  a5 {[%clk 0:02:48]} 7. e3 {[%clk 0:02:58]}  Na6 {[%clk 0:02:49]} 8. Be2 {[%clk 0:02:57]}  Nb4 {[%clk 0:02:49]} 9. O-O {[%clk 0:02:57]}  Be7 {[%clk 0:02:49]} 10. h3 {[%clk 0:02:56]}  O-O {[%clk 0:02:48]} 11. Bh2 {[%clk 0:02:57]}  b6 {[%clk 0:02:48]} 12. Ne5 {[%clk 0:02:57]}  Bb7 {[%clk 0:02:47]} 13. f4 {[%clk 0:02:54]}  c5 {[%clk 0:02:47]} 14. cxd5 {[%clk 0:02:51]}  Nbxd5 {[%clk 0:02:34]} 15. Qe1 {[%clk 0:02:39]}  cxd4 {[%clk 0:02:33]} 16. exd4 {[%clk 0:02:34]}  Ne3 {[%clk 0:02:27]} 17. Rf2 {[%clk 0:02:30]}  Nc2 {[%clk 0:02:26]} 18. Qc1 {[%clk 0:02:18]}  Nxa1 {[%clk 0:02:26]} 19. Qxa1 {[%clk 0:02:19]}  Qxd4 {[%clk 0:02:26]} 20. Nb5 {[%clk 0:02:19]}  Qe3 {[%clk 0:02:20]} 21. Bf3 {[%clk 0:01:44]}  Bxf3 {[%clk 0:02:17]} 22. gxf3 {[%clk 0:01:45]}  Bc5 {[%clk 0:02:17]} 0-1


[Site "https://www.chess.com"]

[Event "Titled Tuesday Blitz December 20 Early 2022"]
[White "Wild, Achim"]
[Black "maurovargas01"]
[WhiteFideId "4658728"]
[WhiteElo "2265"]
[BlackElo "1920"]
[Result "1-0"]
[Round "03"]
[TimeControl "180+2"]
[Date "2022.12.20"]
[WhiteClock "0:02:29"]
[BlackClock "0:00:05"]

1. a3 {[%clk 0:02:59]}  e5 {[%clk 0:00:23]} 2. e3 {[%clk 0:02:48]}  Nc6 {[%clk 0:00:24]} 3. b4 {[%clk 0:02:47]}  f5 {[%clk 0:00:25]} 4. Bb2 {[%clk 0:02:47]}  d6 {[%clk 0:00:24]} 5. c4 {[%clk 0:02:45]}  Be6 {[%clk 0:00:24]} 6. Qc2 {[%clk 0:02:45]}  Nf6 {[%clk 0:00:23]} 7. d4 {[%clk 0:02:45]}  exd4 {[%clk 0:00:22]} 8. exd4 {[%clk 0:02:45]}  Ne7 {[%clk 0:00:20]} 9. d5 {[%clk 0:02:43]}  Bd7 {[%clk 0:00:19]} 10. Nf3 {[%clk 0:02:35]}  Ng6 {[%clk 0:00:13]} 11. Bd3 {[%clk 0:02:34]}  f4 {[%clk 0:00:05]} 12. Bxg6+ {[%clk 0:02:33]}  hxg6 {[%clk 0:00:06]} 13. Qxg6+ {[%clk 0:02:33]}  Ke7 {[%clk 0:00:07]} 14. O-O {[%clk 0:02:32]}  Rh6 {[%clk 0:00:06]} 15. Re1+ {[%clk 0:02:32]}  Be6 {[%clk 0:00:05]} 16. Rxe6+ {[%clk 0:02:31]}  Kd7 {[%clk 0:00:05]} 17. Qf7+ {[%clk 0:02:29]} 1-0


[Site "https://www.chess.com"]

[Event "Titled Tuesday Blitz December 20 Early 2022"]
[White "Yurasova_Daria"]
[Black "Dadic, Ivan"]
[BlackFideId "14531364"]
[WhiteElo "2502"]
[BlackElo "2080"]
[Result "1-0"]
[Round "03"]
[TimeControl "180+2"]
[Date "2022.12.20"]
[WhiteClock "0:02:26"]
[BlackClock "0:02:23"]

1. d4 {[%clk 0:03:00]}  Nf6 {[%clk 0:02:58]} 2. Bg5 {[%clk 0:02:59]}  Ne4 {[%clk 0:02:56]} 3. Bf4 {[%clk 0:02:58]}  c5 {[%clk 0:02:56]} 4. d5 {[%clk 0:02:55]}  g6 {[%clk 0:02:52]} 5. Nd2 {[%clk 0:02:53]}  Nxd2 {[%clk 0:02:49]} 6. Qxd2 {[%clk 0:02:54]}  Bg7 {[%clk 0:02:48]} 7. c3 {[%clk 0:02:55]}  O-O {[%clk 0:02:39]} 8. Nf3 {[%clk 0:02:51]}  d6 {[%clk 0:02:39]} 9. e4 {[%clk 0:02:51]}  e6 {[%clk 0:02:39]} 10. Be2 {[%clk 0:02:49]}  exd5 {[%clk 0:02:37]} 11. exd5 {[%clk 0:02:50]}  Re8 {[%clk 0:02:31]} 12. O-O {[%clk 0:02:50]}  Bf8 {[%clk 0:02:28]} 13. Rfe1 {[%clk 0:02:48]}  Nd7 {[%clk 0:02:27]} 14. Bf1 {[%clk 0:02:33]}  Nf6 {[%clk 0:02:25]} 15. Bg5 {[%clk 0:02:27]}  Ne4 {[%clk 0:02:23]} 16. Rxe4 {[%clk 0:02:26]} 1-0


[Site "https://www.chess.com"]

[Event "Titled Tuesday Blitz December 20 Early 2022"]
[White "Zhigalko_Sergei"]
[Black "forevery0ung"]
[WhiteElo "2876"]
[BlackElo "2661"]
[Result "1-0"]
[Round "03"]
[TimeControl "180+2"]
[Date "2022.12.20"]
[WhiteClock "0:00:09"]
[BlackClock "0:00:09"]

1. e4 {[%clk 0:03:00]}  e6 {[%clk 0:02:55]} 2. d4 {[%clk 0:03:00]}  d5 {[%clk 0:02:55]} 3. e5 {[%clk 0:03:00]}  c5 {[%clk 0:02:55]} 4. c3 {[%clk 0:03:00]}  Bd7 {[%clk 0:02:55]} 5. Nf3 {[%clk 0:03:00]}  Qb6 {[%clk 0:02:56]} 6. Be2 {[%clk 0:02:59]}  Bb5 {[%clk 0:02:56]} 7. Bxb5+ {[%clk 0:02:59]}  Qxb5 {[%clk 0:02:56]} 8. a4 {[%clk 0:03:00]}  Qa6 {[%clk 0:02:56]} 9. dxc5 {[%clk 0:02:59]}  Bxc5 {[%clk 0:02:53]} 10. b4 {[%clk 0:02:59]}  Bf8 {[%clk 0:02:54]} 11. Na3 {[%clk 0:02:59]}  Nd7 {[%clk 0:02:51]} 12. Nb5 {[%clk 0:02:57]}  Qc6 {[%clk 0:02:51]} 13. O-O {[%clk 0:02:52]}  a6 {[%clk 0:02:40]} 14. Nbd4 {[%clk 0:02:53]}  Qc4 {[%clk 0:02:40]} 15. h4 {[%clk 0:02:18]}  Ne7 {[%clk 0:02:37]} 16. h5 {[%clk 0:02:18]}  Nc6 {[%clk 0:02:29]} 17. Re1 {[%clk 0:02:02]}  Nxd4 {[%clk 0:02:07]} 18. Nxd4 {[%clk 0:02:02]}  Qxc3 {[%clk 0:02:05]} 19. Ra3 {[%clk 0:01:57]}  Qc4 {[%clk 0:02:04]} 20. Rg3 {[%clk 0:01:39]}  Bxb4 {[%clk 0:02:00]} 21. Re2 {[%clk 0:01:40]}  Bc5 {[%clk 0:01:41]} 22. Nf3 {[%clk 0:01:39]}  Rc8 {[%clk 0:01:38]} 23. Bd2 {[%clk 0:01:00]}  O-O {[%clk 0:01:19]} 24. Bh6 {[%clk 0:00:59]}  g6 {[%clk 0:01:10]} 25. Rb2 {[%clk 0:00:20]}  Rfd8 {[%clk 0:01:01]} 26. hxg6 {[%clk 0:00:17]}  hxg6 {[%clk 0:01:00]} 27. Rxb7 {[%clk 0:00:16]}  Rb8 {[%clk 0:00:59]} 28. Qb1 {[%clk 0:00:09]}  Rxb7 {[%clk 0:00:46]} 29. Rxg6+ {[%clk 0:00:09]}  Kh8 {[%clk 0:00:29]} 30. Bg7+ {[%clk 0:00:09]}  Kh7 {[%clk 0:00:16]} 31. Ng5+ {[%clk 0:00:08]}  Kg8 {[%clk 0:00:13]} 32. Bh6+ {[%clk 0:00:08]}  Kh8 {[%clk 0:00:09]} 33. Nxf7+ {[%clk 0:00:08]}  Kh7 {[%clk 0:00:09]} 34. Rg7# {[%clk 0:00:09]} 1-0


[Site "https://www.chess.com"]

[Event "Titled Tuesday Blitz December 20 Early 2022"]
[White "Zozik, S. Mohammed"]
[Black "Cag, Ceyda"]
[WhiteFideId "4803280"]
[BlackFideId "34571477"]
[WhiteElo "2116"]
[BlackElo "2157"]
[Result "1/2-1/2"]
[Round "03"]
[TimeControl "180+2"]
[Date "2022.12.20"]
[WhiteClock "0:00:27"]
[BlackClock "0:00:14"]

1. d4 {[%clk 0:02:52]}  d5 {[%clk 0:02:59]} 2. Nf3 {[%clk 0:02:53]}  e6 {[%clk 0:03:00]} 3. c4 {[%clk 0:02:53]}  Nf6 {[%clk 0:03:00]} 4. g3 {[%clk 0:02:54]}  c6 {[%clk 0:03:01]} 5. Bg2 {[%clk 0:02:54]}  Nbd7 {[%clk 0:03:01]} 6. O-O {[%clk 0:02:55]}  Bd6 {[%clk 0:03:01]} 7. Nbd2 {[%clk 0:02:54]}  e5 {[%clk 0:02:59]} 8. dxe5 {[%clk 0:02:53]}  Nxe5 {[%clk 0:03:00]} 9. Nxe5 {[%clk 0:02:53]}  Bxe5 {[%clk 0:03:00]} 10. cxd5 {[%clk 0:02:53]}  cxd5 {[%clk 0:03:01]} 11. Nf3 {[%clk 0:02:53]}  Bd6 {[%clk 0:02:49]} 12. Bg5 {[%clk 0:02:52]}  Be6 {[%clk 0:02:49]} 13. Qb3 {[%clk 0:02:48]}  O-O {[%clk 0:02:28]} 14. Nd4 {[%clk 0:02:46]}  h6 {[%clk 0:02:22]} 15. Bxf6 {[%clk 0:02:31]}  Qxf6 {[%clk 0:02:22]} 16. Nxe6 {[%clk 0:02:32]}  fxe6 {[%clk 0:02:18]} 17. Qxb7 {[%clk 0:02:31]}  Be5 {[%clk 0:02:12]} 18. Rab1 {[%clk 0:02:26]}  Rfb8 {[%clk 0:02:02]} 19. Qc6 {[%clk 0:02:20]}  Rc8 {[%clk 0:01:48]} 20. Qa4 {[%clk 0:02:18]}  Bxb2 {[%clk 0:01:41]} 21. e4 {[%clk 0:02:10]}  dxe4 {[%clk 0:01:17]} 22. Bxe4 {[%clk 0:02:07]}  Rab8 {[%clk 0:01:16]} 23. Qxa7 {[%clk 0:02:08]}  Rb4 {[%clk 0:01:08]} 24. Bg2 {[%clk 0:02:03]}  Bd4 {[%clk 0:00:48]} 25. Qd7 {[%clk 0:02:02]}  Rcb8 {[%clk 0:00:32]} 26. Rxb4 {[%clk 0:02:00]}  Rxb4 {[%clk 0:00:33]} 27. Bh3 {[%clk 0:01:45]}  Rb2 {[%clk 0:00:25]} 28. Qxe6+ {[%clk 0:01:44]}  Qxe6 {[%clk 0:00:18]} 29. Bxe6+ {[%clk 0:01:42]}  Kf8 {[%clk 0:00:19]} 30. Kg2 {[%clk 0:01:38]}  Ke7 {[%clk 0:00:20]} 31. Bb3 {[%clk 0:01:37]}  g5 {[%clk 0:00:21]} 32. h3 {[%clk 0:01:37]}  Kf6 {[%clk 0:00:21]} 33. Kf3 {[%clk 0:01:34]}  h5 {[%clk 0:00:21]} 34. g4 {[%clk 0:01:14]}  h4 {[%clk 0:00:20]} 35. Bc4 {[%clk 0:01:09]}  Ke5 {[%clk 0:00:20]} 36. a4 {[%clk 0:01:08]}  Rb4 {[%clk 0:00:19]} 37. Bb5 {[%clk 0:01:07]}  Rb2 {[%clk 0:00:19]} 38. Bc6 {[%clk 0:01:05]}  Kd6 {[%clk 0:00:19]} 39. Be4 {[%clk 0:01:03]}  Ra2 {[%clk 0:00:19]} 40. Bd3 {[%clk 0:00:55]}  Rxa4 {[%clk 0:00:19]} 41. Re1 {[%clk 0:00:53]}  Ra3 {[%clk 0:00:17]} 42. Rd1 {[%clk 0:00:50]}  Ke5 {[%clk 0:00:17]} 43. Rd2 {[%clk 0:00:45]}  Bc3 {[%clk 0:00:17]} 44. Re2+ {[%clk 0:00:43]}  Kd4 {[%clk 0:00:17]} 45. Bf5 {[%clk 0:00:43]}  Bb4+ {[%clk 0:00:17]} 46. Kg2 {[%clk 0:00:38]}  Ra1 {[%clk 0:00:17]} 47. Re4+ {[%clk 0:00:37]}  Kc3 {[%clk 0:00:18]} 48. Re6 {[%clk 0:00:33]}  Bc5 {[%clk 0:00:18]} 49. Rg6 {[%clk 0:00:32]}  Ra2 {[%clk 0:00:18]} 50. Rxg5 {[%clk 0:00:32]}  Rxf2+ {[%clk 0:00:18]} 51. Kh1 {[%clk 0:00:32]}  Kd4 {[%clk 0:00:18]} 52. Rh5 {[%clk 0:00:28]}  Ke3 {[%clk 0:00:17]} 53. Rxh4 {[%clk 0:00:28]}  Bd4 {[%clk 0:00:14]} 54. g5 {[%clk 0:00:28]}  Ba7 {[%clk 0:00:13]} 55. Rg4 {[%clk 0:00:28]}  Kf3 {[%clk 0:00:13]} 56. g6 {[%clk 0:00:28]}  Rf1+ {[%clk 0:00:12]} 57. Kh2 {[%clk 0:00:27]}  Rf2+ {[%clk 0:00:13]} 58. Kh1 {[%clk 0:00:26]}  Rf1+ {[%clk 0:00:13]} 59. Kh2 {[%clk 0:00:26]}  Rf2+ {[%clk 0:00:14]} 60. Kh1 {[%clk 0:00:27]} 1/2-1/2


[Site "https://www.chess.com"]

[Event "Titled Tuesday Blitz December 20 Early 2022"]
[White "bardiya_Daneshvar"]
[Black "Hsu, Li Yang"]
[BlackFideId "5800080"]
[WhiteElo "2903"]
[BlackElo "2427"]
[Result "1-0"]
[Round "03"]
[TimeControl "180+2"]
[Date "2022.12.20"]
[WhiteClock "0:00:06"]
[BlackClock "0:00:03"]

1. b3 {[%clk 0:03:00]}  Nf6 {[%clk 0:02:57]} 2. Bb2 {[%clk 0:03:01]}  d5 {[%clk 0:02:56]} 3. g3 {[%clk 0:02:59]}  c6 {[%clk 0:02:56]} 4. Bg2 {[%clk 0:03:00]}  Bg4 {[%clk 0:02:56]} 5. Nf3 {[%clk 0:02:57]}  e6 {[%clk 0:02:55]} 6. d3 {[%clk 0:02:55]}  Be7 {[%clk 0:02:51]} 7. Nbd2 {[%clk 0:02:54]}  O-O {[%clk 0:02:51]} 8. c4 {[%clk 0:02:52]}  Nbd7 {[%clk 0:02:51]} 9. O-O {[%clk 0:02:50]}  a5 {[%clk 0:02:51]} 10. a3 {[%clk 0:02:50]}  Bh5 {[%clk 0:02:47]} 11. Rc1 {[%clk 0:02:50]}  Ne8 {[%clk 0:02:42]} 12. Rc2 {[%clk 0:02:49]}  Bf6 {[%clk 0:02:42]} 13. Qa1 {[%clk 0:02:47]}  Bxb2 {[%clk 0:02:42]} 14. Qxb2 {[%clk 0:02:48]}  Qf6 {[%clk 0:02:42]} 15. d4 {[%clk 0:02:48]}  Bg6 {[%clk 0:02:39]} 16. Rcc1 {[%clk 0:02:46]}  Nd6 {[%clk 0:02:38]} 17. Ne5 {[%clk 0:02:41]}  Qe7 {[%clk 0:02:30]} 18. Nxg6 {[%clk 0:02:40]}  hxg6 {[%clk 0:02:29]} 19. c5 {[%clk 0:02:35]}  Nf5 {[%clk 0:02:24]} 20. e4 {[%clk 0:02:35]}  dxe4 {[%clk 0:02:23]} 21. Bxe4 {[%clk 0:02:27]}  Rfd8 {[%clk 0:02:18]} 22. Nc4 {[%clk 0:01:57]}  Nf6 {[%clk 0:02:05]} 23. Bxf5 {[%clk 0:01:56]}  gxf5 {[%clk 0:02:06]} 24. Rfe1 {[%clk 0:01:49]}  Nd5 {[%clk 0:01:51]} 25. Qd2 {[%clk 0:01:43]}  a4 {[%clk 0:01:46]} 26. b4 {[%clk 0:01:40]}  Rd7 {[%clk 0:01:43]} 27. Qc2 {[%clk 0:01:29]}  Qf6 {[%clk 0:01:37]} 28. Rcd1 {[%clk 0:01:23]}  g6 {[%clk 0:01:30]} 29. Nd6 {[%clk 0:01:15]}  b5 {[%clk 0:01:13]} 30. f4 {[%clk 0:01:03]}  Rad8 {[%clk 0:01:10]} 31. Qg2 {[%clk 0:00:59]}  Rc7 {[%clk 0:01:00]} 32. Re5 {[%clk 0:00:55]}  Ne7 {[%clk 0:00:58]} 33. g4 {[%clk 0:00:46]}  fxg4 {[%clk 0:00:57]} 34. Qxg4 {[%clk 0:00:47]}  Rcd7 {[%clk 0:00:41]} 35. Ne4 {[%clk 0:00:18]}  Qg7 {[%clk 0:00:35]} 36. Qg5 {[%clk 0:00:15]}  Rxd4 {[%clk 0:00:26]} 37. Rxd4 {[%clk 0:00:14]}  Rxd4 {[%clk 0:00:26]} 38. Qxe7 {[%clk 0:00:15]}  Qh6 {[%clk 0:00:13]} 39. Qg5 {[%clk 0:00:06]}  Rd1+ {[%clk 0:00:10]} 40. Kg2 {[%clk 0:00:06]}  Qxg5+ {[%clk 0:00:05]} 41. fxg5 {[%clk 0:00:05]}  Rd3 {[%clk 0:00:05]} 42. Nf6+ {[%clk 0:00:05]}  Kg7 {[%clk 0:00:05]} 43. Re4 {[%clk 0:00:05]}  Kf8 {[%clk 0:00:03]} 44. Rh4 {[%clk 0:00:05]}  Kg7 {[%clk 0:00:01]} 45. Rh7+ {[%clk 0:00:05]}  Kf8 {[%clk 0:00:02]} 46. Rh8+ {[%clk 0:00:06]}  Ke7 {[%clk 0:00:03]} 47. Re8# {[%clk 0:00:06]} 1-0


[Site "https://www.chess.com"]